fUSD/lending_fUSD_20260516
["ID","MTS","AMOUNT","RATE_DAILY","PERIOD"]
[422376703,1778899840000,-500.0,0.00014999,2]
[422376674,1778899840000,-866.23275162,0.00014999,2]
[422376672,1778899840000,-866.23275162,0.00014999,2]
[422376671,1778899840000,-866.23275162,0.00014999,2]
[422376675,1778899840000,-866.23275162,0.00014999,2]
[422376660,1778899840000,-866.23275162,0.00014999,2]
[422376704,1778899840000,-500.0,0.00014999,2]
[422376714,1778899840000,-500.0,0.00014999,2]
[422376715,1778899840000,-500.0,0.00014999,2]
[422376733,1778899840000,-669.02,0.00014999,2]
[422376705,1778899840000,-500.0,0.00014999,2]
[422376738,1778899840000,-669.02,0.00014999,2]
[422376735,1778899840000,-669.02,0.00014999,2]
[422376739,1778899840000,-669.02,0.00014999,2]
[422376736,1778899840000,-669.02,0.00014999,2]
[422376743,1778899840000,-669.02,0.00014999,2]
[422376744,1778899840000,-669.02,0.00014999,2]
[422376746,1778899840000,-669.02,0.00014999,2]
[422376745,1778899840000,-669.02,0.00014999,2]
[422376747,1778899840000,-669.02,0.00014999,2]
[422376757,1778899840000,-300.0,0.00014999,2]
[422376753,1778899840000,-300.0,0.00014999,2]
[422376748,1778899840000,-669.02,0.00014999,2]
[422376750,1778899840000,-4494.462042,0.00014999,2]
[422376755,1778899840000,-300.0,0.00014999,2]
[422376749,1778899840000,-669.04461365,0.00014999,2]
[422376756,1778899840000,-300.0,0.00014999,2]
[422376752,1778899840000,-461.79272173,0.00014999,2]
[422376758,1778899840000,-666.0,0.00014999,2]
[422376760,1778899840000,-744.0,0.00015,5]
[422376764,1778899840000,-150.0,0.00015,2]
[422376759,1778899840000,-931.0,0.00015,5]
[422376762,1778899840000,-150.0,0.00015,2]
[422376767,1778899840000,-4189098.67251258,0.00015,2]
[422376734,1778899840000,-669.02,0.00014999,2]
[422376737,1778899840000,-669.02,0.00014999,2]
[422376740,1778899840000,-669.02,0.00014999,2]
[422376730,1778899840000,-669.02,0.00014999,2]
[422376706,1778899840000,-500.0,0.00014999,2]
[422376711,1778899840000,-500.0,0.00014999,2]
[422376709,1778899840000,-500.0,0.00014999,2]
[422376712,1778899840000,-500.0,0.00014999,2]
[422376708,1778899840000,-500.0,0.00014999,2]
[422376707,1778899840000,-500.0,0.00014999,2]
[422376713,1778899840000,-500.0,0.00014999,2]
[422376710,1778899840000,-500.0,0.00014999,2]
[422376732,1778899840000,-669.02,0.00014999,2]
[422376728,1778899840000,-669.02,0.00014999,2]
[422376726,1778899840000,-646.23431687,0.00014999,2]
[422376725,1778899840000,-500.0,0.00014999,2]
[422376718,1778899840000,-500.0,0.00014999,2]
[422376727,1778899840000,-669.02,0.00014999,2]
[422376741,1778899840000,-669.02,0.00014999,2]
[422376742,1778899840000,-669.02,0.00014999,2]
[422376721,1778899840000,-500.0,0.00014999,2]
[422376729,1778899840000,-669.02,0.00014999,2]
[422376724,1778899840000,-500.0,0.00014999,2]
[422376731,1778899840000,-669.02,0.00014999,2]
[422376723,1778899840000,-500.0,0.00014999,2]
[422376720,1778899840000,-500.0,0.00014999,2]
[422376719,1778899840000,-500.0,0.00014999,2]
[422376717,1778899840000,-500.0,0.00014999,2]
[422376722,1778899840000,-500.0,0.00014999,2]
[422376716,1778899840000,-500.0,0.00014999,2]
[422376769,1778899843000,-152.0,0.00012641,7]
[422376770,1778899843000,-328.214072,0.000147,2]
[422376793,1778899845000,-3403.20951426,0.00015,2]
[422376792,1778899845000,-203.62810768,0.000149,2]
[422376791,1778899845000,-604.62205607,0.000147,2]
[422376794,1778899846000,-6375.40687588,0.00015,2]
[422376879,1778899920000,155.0,0.00030137,120]
[422376880,1778900138000,200.0,0.00030136,120]
[422376881,1778900153000,240.86794699,0.00030137,120]
[422376882,1778900163000,200.0,0.0003013,120]
[422376883,1778900177000,200.0,0.0003013,120]
[422376884,1778900497000,310.97,0.0003013,120]
[422376888,1778900641000,154.31,9.093e-05,2]
[422376887,1778900641000,41.38942477,8.113e-05,2]
[422376886,1778900641000,112.92057523,8.113e-05,2]
[422376885,1778900641000,154.31,7.134e-05,2]
[422376889,1778900698000,352.34471628,0.0001,2]
[422376890,1778900711000,1178.13421325,0.0001,2]
[422376891,1778900726000,192.62203538,9.04e-05,2]
[422376892,1778900956000,4090.0,0.0003,120]
[422376932,1778901032000,-166.66,0.00013836,2]
[422376931,1778901032000,-150.0,0.00013821,2]
[422376927,1778901032000,-166.66,0.00013699,2]
[422376921,1778901032000,-500.0,0.0001363,2]
[422376926,1778901032000,-150.0,0.00013654,2]
[422376923,1778901032000,-500.0,0.0001363,2]
[422376924,1778901032000,-500.0,0.0001363,2]
[422376925,1778901032000,-594.96,0.0001363,2]
[422376955,1778901032000,-658.52873662,0.00013972,2]
[422376929,1778901032000,-150.0,0.00013737,2]
[422376928,1778901032000,-546.92,0.00013733,2]
[422376938,1778901032000,-150.0,0.00013862,2]
[422376950,1778901032000,-500.0,0.00013904,2]
[422376919,1778901032000,-150.0,0.00013488,2]
[422376935,1778901032000,-150.0,0.00013862,2]
[422376952,1778901032000,-197.83,0.00013934,2]
[422376941,1778901032000,-150.0,0.00013904,2]
[422376959,1778901032000,-150.0,0.00013973,2]
[422376930,1778901032000,-150.0,0.00013737,2]
[422376917,1778901032000,-150.0,0.00013488,2]
[422376910,1778901032000,-500.0,0.00013356,2]
[422376913,1778901032000,-150.0,0.00013488,2]
[422376897,1778901032000,-154.31,0.00010072,2]
[422376899,1778901032000,-154.31,0.0001203,2]
[422376898,1778901032000,-154.31,0.00011051,2]
[422376901,1778901032000,-152.0,0.00012612,7]
[422376903,1778901032000,-300.0,0.00012738,2]
[422376902,1778901032000,-210.99305314,0.00012675,2]
[422376900,1778901032000,-254.81376594,0.00012236,2]
[422376904,1778901032000,-1200.0,0.00012738,2]
[422376905,1778901032000,-188.92467356,0.00012739,2]
[422376906,1778901032000,-4211.59187353,0.00012739,2]
[422376907,1778901032000,-4438.00906479,0.00012739,2]
[422376908,1778901032000,-12902.05498812,0.00012739,2]
[422376909,1778901032000,-154.31,0.00013009,2]
[422376914,1778901032000,-150.0,0.00013488,2]
[422376911,1778901032000,-150.0,0.00013488,2]
[422376912,1778901032000,-150.0,0.00013488,2]
[422376948,1778901032000,-500.0,0.00013904,2]
[422376918,1778901032000,-150.0,0.00013488,2]
[422376915,1778901032000,-150.90979649,0.00013488,2]
[422376916,1778901032000,-150.0,0.00013488,2]
[422376946,1778901032000,-500.0,0.00013904,2]
[422376920,1778901032000,-150.0,0.00013571,2]
[422376961,1778901032000,-420.0,0.00013973,2]
[422376983,1778901032000,-150.0,0.00014237,2]
[422376984,1778901032000,-150.0,0.00014237,2]
[422376991,1778901032000,-500.0,0.0001435,2]
[422376992,1778901032000,-166.66,0.00014384,2]
[422376989,1778901032000,-166.55,0.00014297,2]
[422376990,1778901032000,-150.0,0.0001432,2]
[422376998,1778901032000,-150.0,0.00014487,2]
[422376999,1778901032000,-1223.0,0.000145,2]
[422376995,1778901032000,-546.92,0.00014419,2]
[422376994,1778901032000,-350.0,0.00014408,2]
[422377000,1778901032000,-6054.0,0.000145,2]
[422376996,1778901032000,-150.0,0.00014487,2]
[422376997,1778901032000,-150.0,0.00014487,2]
[422377002,1778901032000,-5937.1,0.00014504,2]
[422377001,1778901032000,-417.0,0.000145,2]
[422377004,1778901032000,-60850.19883133,0.00014504,2]
[422377003,1778901032000,-6991.09,0.00014504,2]
[422377005,1778901032000,-3000.0,0.00014504,2]
[422376943,1778901032000,-500.0,0.00013904,2]
[422376987,1778901032000,-759.24146496,0.00014249,2]
[422376988,1778901032000,-1582.625274,0.0001425,2]
[422376993,1778901032000,-150.0,0.00014404,2]
[422376982,1778901032000,-150.0,0.00014237,2]
[422376962,1778901032000,-150.0,0.00013987,2]
[422376986,1778901032000,-166.66,0.00014247,2]
[422376957,1778901032000,-166.66,0.00013973,2]
[422376964,1778901032000,-150.0,0.00013987,2]
[422376967,1778901032000,-154.31,0.00013989,2]
[422376968,1778901032000,-2000.0,0.00013989,2]
[422376969,1778901032000,-242.98,0.00013989,2]
[422376975,1778901032000,-911.0,0.0001404,2]
[422376976,1778901032000,-150.0,0.0001407,2]
[422376972,1778901032000,-500.0,0.00014,2]
[422376966,1778901032000,-150.0,0.00013987,2]
[422376981,1778901032000,-150.0,0.00014154,2]
[422376977,1778901032000,-200.0,0.00014075,2]
[422376973,1778901032000,-614.61,0.00014,2]
[422376974,1778901032000,-1680.0,0.00014012,2]
[422376971,1778901032000,-250.0,0.00014,2]
[422376979,1778901032000,-546.92,0.00014076,2]
[422376978,1778901032000,-500.0,0.00014076,2]
[422376980,1778901032000,-166.66,0.0001411,2]
[422376970,1778901032000,-2609.27438632,0.0001399,2]
[422376985,1778901032000,-150.0,0.00014237,2]
[422377038,1778901038000,-2450.66161092,0.00014898,2]
[422377047,1778901038000,-759.70848507,0.00014899,2]
[422377046,1778901038000,-6733.15798207,0.00014899,2]
[422377044,1778901038000,-759.70848507,0.00014899,2]
[422377027,1778901038000,-164.09895009,0.0001487,2]
[422377041,1778901038000,-759.70848507,0.00014899,2]
[422377033,1778901038000,-2450.66161092,0.00014892,2]
[422377040,1778901038000,-759.70848507,0.00014898,2]
[422377034,1778901038000,-2450.66161092,0.00014894,2]
[422377036,1778901038000,-15000.0,0.00014896,2]
[422377048,1778901038000,-6733.15798207,0.00014899,2]
[422377035,1778901038000,-2450.66161092,0.00014896,2]
[422377037,1778901038000,-759.7084851,0.00014898,2]
[422377042,1778901038000,-759.70848507,0.00014899,2]
[422377045,1778901038000,-6733.15798207,0.00014899,2]
[422377043,1778901038000,-6733.15798214,0.00014899,2]
[422377050,1778901038000,-6733.15798207,0.00014899,2]
[422377061,1778901038000,-1622.80433939,0.000149,2]
[422377059,1778901038000,-153.61309489,0.000149,2]
[422377026,1778901038000,-18412.18862458,0.0001486,2]
[422377039,1778901038000,-759.70848507,0.00014898,2]
[422377029,1778901038000,-1243.47,0.00014877,14]
[422377008,1778901038000,-150.99,0.00014504,2]
[422377025,1778901038000,-554.37583,0.0001486,2]
[422377060,1778901038000,-759.70848507,0.000149,2]
[422377007,1778901038000,-22624.41116867,0.00014504,2]
[422377020,1778901038000,-389.310602,0.00014773,2]
[422377019,1778901038000,-202.899856,0.00014773,2]
[422377013,1778901038000,-350.0,0.00014661,2]
[422377009,1778901038000,-150.0,0.0001457,2]
[422377010,1778901038000,-150.0,0.00014612,2]
[422377018,1778901038000,-546.92,0.00014763,2]
[422377016,1778901038000,-150.0,0.00014737,2]
[422377011,1778901038000,-150.0,0.00014612,2]
[422377012,1778901038000,-150.0,0.00014653,2]
[422377015,1778901038000,-186.63993,0.000147,2]
[422377014,1778901038000,-240.590533,0.000147,2]
[422377017,1778901038000,-150.0,0.00014737,2]
[422377022,1778901038000,-554.37582,0.0001485,2]
[422377030,1778901038000,-2450.66161098,0.00014886,2]
[422377031,1778901038000,-2450.66161092,0.00014888,2]
[422377032,1778901038000,-2450.66161092,0.0001489,2]
[422377021,1778901038000,-150.0,0.0001482,2]
[422377023,1778901038000,-554.37583,0.0001485,2]
[422377024,1778901038000,-6111.0,0.00014859,2]
[422377028,1778901038000,-987.799,0.0001487,2]
[422377052,1778901038000,-759.70848507,0.000149,2]
[422377082,1778901038000,-26459.5034803,0.00014985,2]
[422377053,1778901038000,-6733.15798207,0.000149,2]
[422377090,1778901038000,-150.0,0.00014986,2]
[422377099,1778901038000,-150.0,0.00014986,2]
[422377101,1778901038000,-250.0,0.00014993,2]
[422377103,1778901038000,-151.0,0.00014997,2]
[422377105,1778901038000,-500.0,0.00014998,2]
[422377107,1778901038000,-500.0,0.00014998,2]
[422377112,1778901038000,-476.99893723,0.00014998,2]
[422377114,1778901038000,-500.0,0.00014998,2]
[422377116,1778901038000,-500.0,0.00014998,2]
[422377119,1778901038000,-461.79272173,0.00014998,2]
[422377110,1778901038000,-500.0,0.00014998,2]
[422377118,1778901038000,-500.0,0.00014998,2]
[422377129,1778901038000,-455.90856275,0.00014999,2]
[422377133,1778901038000,-500.0,0.00014999,2]
[422377123,1778901038000,-150.60061714,0.00014999,2]
[422377125,1778901038000,-330.50441725,0.00014999,2]
[422377121,1778901038000,-824.61712934,0.00014999,2]
[422377135,1778901038000,-500.0,0.00014999,2]
[422377127,1778901038000,-500.0,0.00014999,2]
[422377137,1778901038000,-500.0,0.00014999,2]
[422377058,1778901038000,-1500.0,0.000149,2]
[422377098,1778901038000,-150.0,0.00014986,2]
[422377086,1778901038000,-8720.9311555,0.00014985,2]
[422377131,1778901038000,-500.0,0.00014999,2]
[422377088,1778901038000,-11507.5567916,0.00014985,2]
[422377084,1778901038000,-42493.8232913,0.00014985,2]
[422377057,1778901038000,-5000.0,0.000149,2]
[422377055,1778901038000,-759.70848507,0.000149,2]
[422377056,1778901038000,-623.1203785,0.000149,2]
[422377064,1778901038000,-250.0,0.00014948,2]
[422377054,1778901038000,-6733.15798207,0.000149,2]
[422377065,1778901038000,-350.0,0.00014961,2]
[422377074,1778901038000,-15683.1707753,0.00014985,2]
[422377063,1778901038000,-150.0,0.00014903,2]
[422377062,1778901038000,-2450.66161092,0.000149,2]
[422377076,1778901038000,-33205.5801461,0.00014985,2]
[422377067,1778901038000,-250.0,0.00014974,2]
[422377078,1778901038000,-1932.9776836,0.00014985,2]
[422377068,1778901038000,-500.0,0.00014984,2]
[422377070,1778901038000,-250.0,0.00014984,2]
[422377072,1778901038000,-150.0,0.00014985,2]
[422377080,1778901038000,-1515.5984716,0.00014985,2]
[422377139,1778901038000,-500.0,0.00014999,2]
[422377094,1778901038000,-150.0,0.00014986,2]
[422377092,1778901038000,-150.0,0.00014986,2]
[422377066,1778901038000,-250.0,0.00014962,2]
[422377096,1778901038000,-150.00000001,0.00014986,2]
[422377229,1778901039000,-500.0,0.00014999,2]
[422377222,1778901039000,-500.0,0.00014999,2]
[422377224,1778901039000,-500.0,0.00014999,2]
[422377231,1778901039000,-500.0,0.00014999,2]
[422377235,1778901039000,-500.0,0.00014999,2]
[422377217,1778901039000,-500.0,0.00014999,2]
[422377213,1778901039000,-500.0,0.00014999,2]
[422377219,1778901039000,-500.0,0.00014999,2]
[422377215,1778901039000,-500.0,0.00014999,2]
[422377203,1778901039000,-500.0,0.00014999,2]
[422377201,1778901039000,-500.0,0.00014999,2]
[422377220,1778901039000,-500.0,0.00014999,2]
[422377226,1778901039000,-500.0,0.00014999,2]
[422377246,1778901039000,-500.0,0.00014999,2]
[422377248,1778901039000,-500.0,0.00014999,2]
[422377252,1778901039000,-500.0,0.00014999,2]
[422377239,1778901039000,-500.0,0.00014999,2]
[422377250,1778901039000,-500.0,0.00014999,2]
[422377254,1778901039000,-500.0,0.00014999,2]
[422377240,1778901039000,-500.0,0.00014999,2]
[422377242,1778901039000,-500.0,0.00014999,2]
[422377244,1778901039000,-500.0,0.00014999,2]
[422377256,1778901039000,-500.0,0.00014999,2]
[422377258,1778901039000,-500.0,0.00014999,2]
[422377260,1778901039000,-500.0,0.00014999,2]
[422377262,1778901039000,-500.0,0.00014999,2]
[422377264,1778901039000,-500.0,0.00014999,2]
[422377206,1778901039000,-500.0,0.00014999,2]
[422377237,1778901039000,-500.0,0.00014999,2]
[422377210,1778901039000,-500.0,0.00014999,2]
[422377156,1778901039000,-509.75253239,0.00014999,2]
[422377188,1778901039000,-500.0,0.00014999,2]
[422377147,1778901039000,-500.0,0.00014999,2]
[422377149,1778901039000,-500.0,0.00014999,2]
[422377151,1778901039000,-500.0,0.00014999,2]
[422377155,1778901039000,-500.0,0.00014999,2]
[422377145,1778901039000,-284.15978878,0.00014999,2]
[422377143,1778901039000,-500.0,0.00014999,2]
[422377153,1778901039000,-500.0,0.00014999,2]
[422377141,1778901039000,-500.0,0.00014999,2]
[422377266,1778901039000,-500.0,0.00014999,2]
[422377160,1778901039000,-506.02433073,0.00014999,2]
[422377162,1778901039000,-529.54071265,0.00014999,2]
[422377158,1778901039000,-504.08398651,0.00014999,2]
[422377164,1778901039000,-500.0,0.00014999,2]
[422377168,1778901039000,-515.14926728,0.00014999,2]
[422377197,1778901039000,-500.0,0.00014999,2]
[422377171,1778901039000,-500.0,0.00014999,2]
[422377173,1778901039000,-500.0,0.00014999,2]
[422377170,1778901039000,-500.0,0.00014999,2]
[422377175,1778901039000,-271.93590561,0.00014999,2]
[422377172,1778901039000,-319.08595609,0.00014999,2]
[422377179,1778901039000,-500.0,0.00014999,2]
[422377177,1778901039000,-500.0,0.00014999,2]
[422377185,1778901039000,-500.0,0.00014999,2]
[422377181,1778901039000,-500.0,0.00014999,2]
[422377183,1778901039000,-173.61623274,0.00014999,2]
[422377192,1778901039000,-500.0,0.00014999,2]
[422377190,1778901039000,-439.9075084,0.00014999,2]
[422377194,1778901039000,-500.0,0.00014999,2]
[422377208,1778901039000,-500.0,0.00014999,2]
[422377199,1778901039000,-500.0,0.00014999,2]
[422377166,1778901039000,-490.0,0.00014999,2]
[422377268,1778901039000,-500.0,0.00014999,2]
[422377233,1778901039000,-500.0,0.00014999,2]
[422377280,1778901039000,-500.0,0.00014999,2]
[422377342,1778901039000,-1313.14138123,0.00014999,2]
[422377348,1778901039000,-1313.14138123,0.00014999,2]
[422377338,1778901039000,-1313.14138123,0.00014999,2]
[422377334,1778901039000,-1313.14138123,0.00014999,2]
[422377351,1778901039000,-1313.14138123,0.00014999,2]
[422377365,1778901039000,-1313.14138123,0.00014999,2]
[422377367,1778901039000,-1313.14138123,0.00014999,2]
[422377361,1778901039000,-1313.14138123,0.00014999,2]
[422377363,1778901039000,-1313.14138123,0.00014999,2]
[422377359,1778901039000,-1313.14138123,0.00014999,2]
[422377353,1778901039000,-1313.14138123,0.00014999,2]
[422377355,1778901039000,-1313.14138123,0.00014999,2]
[422377357,1778901039000,-1313.14138123,0.00014999,2]
[422377370,1778901039000,-1313.14138123,0.00014999,2]
[422377372,1778901039000,-1313.14138123,0.00014999,2]
[422377376,1778901039000,-1313.14138123,0.00014999,2]
[422377374,1778901039000,-1313.14138123,0.00014999,2]
[422377380,1778901039000,-1313.14138123,0.00014999,2]
[422377378,1778901039000,-1313.14138123,0.00014999,2]
[422377388,1778901039000,-500.0,0.00014999,2]
[422377379,1778901039000,-1313.14138123,0.00014999,2]
[422377382,1778901039000,-501.56132056,0.00014999,2]
[422377392,1778901039000,-500.0,0.00014999,2]
[422377394,1778901039000,-500.0,0.00014999,2]
[422377386,1778901039000,-500.0,0.00014999,2]
[422377396,1778901039000,-500.0,0.00014999,2]
[422377381,1778901039000,-1313.14138123,0.00014999,2]
[422377384,1778901039000,-403.08694039,0.00014999,2]
[422377270,1778901039000,-500.0,0.00014999,2]
[422377330,1778901039000,-1313.14138123,0.00014999,2]
[422377332,1778901039000,-1313.14138123,0.00014999,2]
[422377390,1778901039000,-500.0,0.00014999,2]
[422377336,1778901039000,-1313.14138123,0.00014999,2]
[422377278,1778901039000,-500.0,0.00014999,2]
[422377328,1778901039000,-1313.14138123,0.00014999,2]
[422377282,1778901039000,-500.0,0.00014999,2]
[422377284,1778901039000,-500.0,0.00014999,2]
[422377272,1778901039000,-500.0,0.00014999,2]
[422377274,1778901039000,-500.0,0.00014999,2]
[422377276,1778901039000,-500.0,0.00014999,2]
[422377288,1778901039000,-500.0,0.00014999,2]
[422377290,1778901039000,-558.40420968,0.00014999,2]
[422377292,1778901039000,-500.0,0.00014999,2]
[422377294,1778901039000,-1313.14138123,0.00014999,2]
[422377298,1778901039000,-1313.14138123,0.00014999,2]
[422377296,1778901039000,-1313.14138123,0.00014999,2]
[422377300,1778901039000,-1313.14138123,0.00014999,2]
[422377302,1778901039000,-1313.14138123,0.00014999,2]
[422377286,1778901039000,-500.0,0.00014999,2]
[422377312,1778901039000,-1313.14138123,0.00014999,2]
[422377346,1778901039000,-1313.14138123,0.00014999,2]
[422377304,1778901039000,-1313.14138123,0.00014999,2]
[422377324,1778901039000,-1313.14138123,0.00014999,2]
[422377340,1778901039000,-1313.14138123,0.00014999,2]
[422377326,1778901039000,-1313.14138123,0.00014999,2]
[422377320,1778901039000,-1313.14138123,0.00014999,2]
[422377314,1778901039000,-1313.14138123,0.00014999,2]
[422377344,1778901039000,-1313.14138123,0.00014999,2]
[422377318,1778901039000,-1313.14138123,0.00014999,2]
[422377316,1778901039000,-1313.14138123,0.00014999,2]
[422377322,1778901039000,-1313.14138123,0.00014999,2]
[422377308,1778901039000,-1313.14138123,0.00014999,2]
[422377306,1778901039000,-1313.14138123,0.00014999,2]
[422377310,1778901039000,-1313.14138123,0.00014999,2]
[422377444,1778901040000,-500.0,0.00014999,2]
[422377433,1778901040000,-500.0,0.00014999,2]
[422377446,1778901040000,-500.0,0.00014999,2]
[422377448,1778901040000,-500.0,0.00014999,2]
[422377476,1778901040000,-669.02,0.00014999,2]
[422377460,1778901040000,-500.0,0.00014999,2]
[422377431,1778901040000,-500.0,0.00014999,2]
[422377450,1778901040000,-500.0,0.00014999,2]
[422377470,1778901040000,-500.0,0.00014999,2]
[422377451,1778901040000,-500.0,0.00014999,2]
[422377456,1778901040000,-500.0,0.00014999,2]
[422377454,1778901040000,-500.0,0.00014999,2]
[422377453,1778901040000,-500.0,0.00014999,2]
[422377472,1778901040000,-465.94431687,0.00014999,2]
[422377466,1778901040000,-500.0,0.00014999,2]
[422377428,1778901040000,-500.0,0.00014999,2]
[422377468,1778901040000,-500.0,0.00014999,2]
[422377458,1778901040000,-500.0,0.00014999,2]
[422377442,1778901040000,-500.0,0.00014999,2]
[422377410,1778901040000,-500.0,0.00014999,2]
[422377440,1778901040000,-500.0,0.00014999,2]
[422377463,1778901040000,-500.0,0.00014999,2]
[422377414,1778901040000,-500.0,0.00014999,2]
[422377412,1778901040000,-500.0,0.00014999,2]
[422377400,1778901040000,-500.0,0.00014999,2]
[422377420,1778901040000,-500.0,0.00014999,2]
[422377404,1778901040000,-500.0,0.00014999,2]
[422377402,1778901040000,-500.0,0.00014999,2]
[422377398,1778901040000,-500.0,0.00014999,2]
[422377418,1778901040000,-500.0,0.00014999,2]
[422377416,1778901040000,-500.0,0.00014999,2]
[422377422,1778901040000,-500.0,0.00014999,2]
[422377408,1778901040000,-500.0,0.00014999,2]
[422377406,1778901040000,-500.0,0.00014999,2]
[422377424,1778901040000,-500.0,0.00014999,2]
[422377435,1778901040000,-500.0,0.00014999,2]
[422377438,1778901040000,-500.0,0.00014999,2]
[422377426,1778901040000,-500.0,0.00014999,2]
[422377430,1778901040000,-500.0,0.00014999,2]
[422377474,1778901040000,-669.02,0.00014999,2]
[422377548,1778901040000,-308.5174995,0.00015,2]
[422377490,1778901040000,-669.02,0.00014999,2]
[422377510,1778901040000,-669.02,0.00014999,2]
[422377525,1778901040000,-300.0,0.00014999,2]
[422377527,1778901040000,-189.69911789,0.00014999,2]
[422377529,1778901040000,-300.0,0.00014999,2]
[422377535,1778901040000,-1180.0,0.00015,5]
[422377531,1778901040000,-666.0,0.00014999,2]
[422377541,1778901040000,-150.0,0.00015,2]
[422377537,1778901040000,-937.0,0.00015,5]
[422377546,1778901040000,-5091.90804701,0.00015,2]
[422377543,1778901040000,-3964011.86915291,0.00015,2]
[422377533,1778901040000,-300.0,0.00014999,2]
[422377539,1778901040000,-150.0,0.00015,2]
[422377551,1778901040000,-257.37910366,0.00015,2]
[422377566,1778901040000,-5186.96950047,0.00015,2]
[422377562,1778901040000,-519.56113632,0.00015,2]
[422377568,1778901040000,-334.08,0.00015,2]
[422377570,1778901040000,-395.295,0.00015,2]
[422377496,1778901040000,-669.02,0.00014999,2]
[422377521,1778901040000,-500.0,0.00014999,2]
[422377517,1778901040000,-669.02,0.00014999,2]
[422377508,1778901040000,-669.02,0.00014999,2]
[422377482,1778901040000,-669.02,0.00014999,2]
[422377492,1778901040000,-669.02,0.00014999,2]
[422377480,1778901040000,-669.02,0.00014999,2]
[422377478,1778901040000,-669.02,0.00014999,2]
[422377488,1778901040000,-669.02,0.00014999,2]
[422377494,1778901040000,-669.02,0.00014999,2]
[422377500,1778901040000,-669.02,0.00014999,2]
[422377512,1778901040000,-669.02,0.00014999,2]
[422377502,1778901040000,-669.02,0.00014999,2]
[422377486,1778901040000,-669.02,0.00014999,2]
[422377484,1778901040000,-669.02,0.00014999,2]
[422377504,1778901040000,-669.02,0.00014999,2]
[422377514,1778901040000,-669.02,0.00014999,2]
[422377519,1778901040000,-669.04461365,0.00014999,2]
[422377516,1778901040000,-669.02,0.00014999,2]
[422377506,1778901040000,-669.02,0.00014999,2]
[422377523,1778901040000,-198.14496198,0.00014999,2]
[422377498,1778901040000,-669.02,0.00014999,2]
[422377909,1778901043000,-6249.54798207,0.000149,2]
[422377901,1778901043000,-483.61,0.000149,2]
[422377911,1778901043000,-9520.36849896,0.00015,2]
[422377927,1778901043000,-83010.31243687,0.00015,2]
[422377919,1778901043000,-993.80145634,0.00015,2]
[422377933,1778901043000,-1208.68179918,0.00015,2]
[422377913,1778901043000,-9167.64423464,0.00015,2]
[422377935,1778901043000,-1020.41,0.00015,2]
[422378333,1778901046000,-1.75875551,0.00015,2]
[422378335,1778901046000,-21415.63848257,0.00015,2]
[422378324,1778901046000,-2754.04024876,0.000149,2]
[422378326,1778901046000,-3629.24124449,0.00015,2]
[422378540,1778901550000,153.64,9.419e-05,2]
[422378539,1778901550000,153.64,7.134e-05,2]
[422378541,1778901571000,401.7938,0.00030136,120]
[422378543,1778901882000,161.94,0.00030136,120]
[422378544,1778901942000,205.88062583,0.00027269,120]
[422378545,1778902033000,500.0,0.00030137,120]
[422378547,1778902056000,652.39527316,0.00027269,120]
[422378546,1778902056000,652.39527316,0.00027117,120]